Cogmind - Beta 16.1 @@@ ROGUE MODE // 2026.04.11 @ 22:10:36 Player: DS-RVS Result: Destroyed by H-71 Marshal with Heavy Mass Driver Performance ------------- Evolutions (6) 3000 Regions Visited (7) 1400 Robots Destroyed (13) 65 Value Destroyed (425) 425 Prototype IDs (0) 0 Alien Tech Used (0) 0 Bonus (1300) 1300 TOTAL SCORE: 6190 Bonus ------- Entered DSFs 500 Registered with UFD 300 Met Optimus in HQ 500 Cogmind --------- Core Integrity 0/1150 Matter 285/300 Energy 99/100 System Corruption 1% Temperature Cool (0) Movement Core (50) Location -4/Factory Parts ------- > --- POWER (2) -------- (None) > --- PROPULSION (6) --- (None) > --- UTILITY (7) ------ Enhanced Optical Array Jamming Amplifier > --- WEAPON (4) ------- Heavy Pick > --- INVENTORY (5) ---- Light Antimatter Reactor Peak State ------------ > --- POWER ------------ Light Ion Engine > --- PROPULSION ------- Thunder Leg Thunder Leg Thunder Leg Nuclear Pulse Thruster Nuclear Pulse Thruster Nuclear Pulse Thruster > --- UTILITY ---------- Enhanced Optical Array Advanced Signal Interpreter Jamming Amplifier Force Field > --- WEAPON ----------- Power Maul Power Maul Power Sword > --- INVENTORY -------- Antigrav System Heavy Pick [Rating: 68] Favorites ----------- Power Deuterium Engine Engine Deuterium Engine Reactor Light Antimatter Reactor Propulsion Light Treads Treads Light Treads Leg Thunder Leg Wheel Subdweller Monowheel Hover Unit Gravmag Array Flight Unit Nuclear Pulse Thruster Utility Advanced Signal Interpreter Device Force Field Storage Small Storage Unit Processor Advanced Signal Interpreter Hackware Improved Hacking Suite Protection Hardened Light Armor Plating Weapon Medium Laser Energy Gun Medium Laser Ballistic Gun Assault Rifle Impact Weapon Power Maul Slashing Weapon Power Sword Piercing Weapon Heavy Pick Build | -11 -10 -10 -9 -6 -5 -5 -4 ------- Run | Yrd Mat Sub Scr Fac Fac DSF Fac Slots Evolved 12 | . . . . 8 2 . 2 Power 1 | . . . . 1 . . . Propulsion 4 | . . . . 2 2 . . Utility 5 | . . . . 3 . . 2 Weapon 2 | . . . . 2 . . . Parts Attached 43 | 7 . 1 4 15 4 6 6 Power 6 | 1 . 1 1 1 . . 2 Engine 5 | 1 . 1 1 1 . . 1 Core . | . . . . . . . . Reactor 1 | . . . . . . . 1 Propulsion 16 | 2 . . . 5 3 4 2 Treads 3 | 2 . . . 1 . . . Leg 5 | . . . . 1 . 3 1 Wheel 2 | . . . . 1 . . 1 Hover 3 | . . . . 2 . 1 . Flight 3 | . . . . . 3 . . Utility 11 | 2 . . 1 7 . 1 . Device 3 | 1 . . . 1 . 1 . Storage 1 | 1 . . . . . . . Processor 3 | . . . 1 2 . . . Hackware 3 | . . . . 3 . . . Protection 1 | . . . . 1 . . . Artifact . | . . . . . . . . Weapon 10 | 2 . . 2 2 1 1 2 Energy Gun 2 | 1 . . 1 . . . . Energy Cannon . | . . . . . . . . Ballistic Gun 4 | 1 . . 1 2 . . . Ballistic Cannon . | . . . . . . . . Launcher . | . . . . . . . . Special Weapon . | . . . . . . . . Impact Weapon 2 | . . . . . 1 1 . Slashing Weapon 1 | . . . . . . . 1 Piercing Weapon 1 | . . . . . . . 1 Special Melee Weapon . | . . . . . . . . Unidentified Prototypes . | . . . . . . . . Parts Lost 30 | . . 1 . 14 . 1 14 Power 3 | . . . . 2 . . 1 Propulsion 14 | . . . . 5 . 1 8 Utility 7 | . . 1 . 4 . . 2 Weapon 6 | . . . . 3 . . 3 Highest Loss Streak 13 | . . 1 . 11 . 1 13 To Critical Strikes . | . . . . . . . . Average Backups 5 | 4 6 7 7 2 1 2 2 Power . | . 1 1 1 . . . . Propulsion 2 | 3 4 4 3 . 1 2 . Utility . | . . . . . . . . Weapon 2 | . 1 1 3 1 . . 1 Tool/Special . | . . . . . . . . Unused Backups 8 | . . 2 3 3 . . . Power 1 | . . 1 . . . . . Propulsion 3 | . . 1 2 . . . . Utility . | . . . . . . . . Weapon 4 | . . . 1 3 . . . Tool/Special . | . . . . . . . . Average Slot Usage (%) 85 | . 100 88 98 59 36 59 50 Engine 10 | . 14 14 14 5 . . . Treads 20 | . 28 28 28 7 . . . Leg 1 | . . . . . . 3 10 Flight 1 | . . . . . 9 17 9 Device 1 | . 14 3 . . . 4 2 Storage 10 | . 14 14 14 3 . . . Processor 12 | . . . 12 10 17 17 13 Hackware 1 | . . . . 7 . . . Energy Gun 10 | . 14 14 14 3 . . . Ballistic Gun 11 | . 14 14 14 9 . . . Impact Weapon 1 | . . . . . 2 10 7 Peak Build Rating 68 | 7 7 8 16 45 47 62 68 Average Rating 21 | 5 7 7 14 34 39 55 48 On Entrance 21 | . 7 7 8 16 27 47 57 Avg Prop Armor Cover (%) 13 | . . . . 10 15 17 24 Naked Turns . | . . . . . . . . Heaviest Build 31 | 15 15 15 18 31 3 13 19 Greatest Support 70 | 40 40 40 40 70 20 23 46 Greatest Overweight (x) 4 | 1 . . . . . 4 4 Average Overweight (x) . | . . . . . . . . Largest Inventory Capacity 8 | 8 8 8 8 8 5 5 5 Average Capacity 7 | 7 8 8 8 6 5 5 5 Most Carried 8 | 6 6 8 8 7 5 5 3 Average Carried 6 | 4 6 7 7 4 3 3 2 Final Capacity 8 | 8 8 8 8 5 5 5 5 Final Carried 8 | 6 6 8 8 3 5 4 1 Class Distribution -------------------- 92% | Mutant 3% | Hacker-Gunner Dominant Class ---------------- Mutant | -10/Materials Mutant | -10/Subcaves Mutant | -9/Scraptown Mutant | -6/Factory Mutant | -5/Factory Mutant | -5/DSF Mutant | -4/Factory Resources | -11 -10 -10 -9 -6 -5 -5 -4 ----------- Run | Yrd Mat Sub Scr Fac Fac DSF Fac Matter Collected 641 | 260 . 45 40 166 . 16 114 Remotely . | . . . . . . . . Salvage Created 441 | 24 . 90 . 74 . 45 208 Parts 27 | 2 . 8 . 5 . 1 11 Haulers Intercepted . | . . . . . . . . Recyclers Shooed . | . . . . . . . . Parts Field Recycled . | . . . . . . . . Retrieved Matter . | . . . . . . . . Parts Self-Destructed . | . . . . . . . . Prevented . | . . . . . . . . Parts Restored . | . . . . . . . . Kills | -11 -10 -10 -9 -6 -5 -5 -4 ------- Run | Yrd Mat Sub Scr Fac Fac DSF Fac Combat Hostiles Destroyed 8 | . . 2 . 3 . 1 2 Melee 3 | . . . . . . 1 2 Guns 5 | . . 2 . 3 . . . Classes Destroyed 7 | 1 . 1 . 1 . 1 3 Builder 2 | . . . . . . . 2 Tunneler 2 | 1 . . . . . . 1 Operator 1 | . . . . . . . 1 Swarmer 3 | . . . . 3 . . . Grunt 2 | . . . . . . . 2 Specialist 1 | . . . . . . 1 . Subdweller 2 | . . 2 . . . . . Best Kill Streak 3 | 1 . 2 . 3 . 1 3 Combat Bots Only 3 | . . 2 . 3 . 1 2 Max Kills in Single Turn 2 | 1 . 1 . 2 . 1 1 Gunslinging 1 | . . . . 1 . . . Exploded . | . . . . . . . . Melee 1 | . . . . . . 1 1 Uniques/NPCs Destroyed . | . . . . . . . . Combat | -11 -10 -10 -9 -6 -5 -5 -4 -------- Run | Yrd Mat Sub Scr Fac Fac DSF Fac Hostile Shots Fired 340 | . . 21 . 184 . 24 111 Missed 98 | . . 7 . 62 . 2 27 Hits 242 | . . 14 . 122 . 22 84 Projectile 242 | . . 14 . 122 . 22 84 AOE 2 | . . . . . . . 2 Critical Strikes 14 | . . . . 9 . 1 4 Damage Taken 5221 | . . 284 . 2323 . 497 2117 Core 2337 | . . 73 . 839 . 230 1195 Absorbed by Shields 50 | . . . . . . 22 28 Core Remaining (%) 62 | 100 . . 70 1 . 77 . Volleys Fired 20 | 1 . 9 . 10 . . . Largest 4 | 2 . 2 . 4 . . . Hottest 128 | 70 . 70 . 128 . . . Shots Fired 52 | 2 . 18 . 32 . . . Gun 52 | 2 . 18 . 32 . . . Cannon . | . . . . . . . . Launcher . | . . . . . . . . Special . | . . . . . . . . Kinetic 32 | 1 . 9 . 22 . . . Thermal 20 | 1 . 9 . 10 . . . Explosive . | . . . . . . . . Electromagnetic . | . . . . . . . . Robot Hit Streak 14 | 2 . 14 . 5 . . . Robot Miss Streak 5 | . . 2 . 5 . . . Penetration Max . | . . . . . . . . Secondary Targets 2 | . . 1 . 1 . . . Max Gunslinging Chain 1 | . . 1 . 1 . . . Shots Hit Robots 65 | 2 . 16 . 15 . 4 28 Core Hits 20 | 1 . 4 . 5 . 1 9 Critical Kills 1 | . . . . . . 1 . Critical Parts Destroyed 2 | . . . . . . 1 1 Critical Strikes 9 | . . 1 . . . 2 6 Destroy 1 | . . 1 . . . . . Smash 3 | . . . . . . 2 1 Sever 5 | . . . . . . . 5 Melee Attacks 47 | . . . . . . 6 41 Impact 19 | . . . . . . 6 13 Slashing 26 | . . . . . . . 26 Piercing 2 | . . . . . . . 2 Sneak Attacks 3 | . . . . . . . 3 Combat Hostiles . | . . . . . . . . Follow-up Attacks 5 | . . . . . . . 5 Damage Inflicted 1947 | 27 . 165 . 272 . 197 1286 Guns 426 | 27 . 165 . 234 . . . Cannons . | . . . . . . . . Explosions . | . . . . . . . . Melee 1483 | . . . . . . 197 1286 Ramming 38 | . . . . 38 . . . Kinetic 246 | 15 . 76 . 155 . . . Thermal 180 | 12 . 89 . 79 . . . Explosive . | . . . . . . . . Electromagnetic . | . . . . . . . . Impact 695 | . . . . . . 197 498 Slashing 729 | . . . . . . . 729 Piercing 59 | . . . . . . . 59 Highest Corruption 4 | . . . . . . 4 1 Average Corruption 3 | . . . . . . 3 1 Corruption Purged . | . . . . . . . . Corruption Blocked . | . . . . . . . . Effects 3 | . . . . . . 2 1 Message Errors 1 | . . . . . . . 1 Energy Discharges 2 | . . . . . . 2 . Overload Shots . | . . . . . . . . Overflow Damage 292 | . . . . . . 63 229 Projectiles . | . . . . . . . . Explosions . | . . . . . . . . Melee 292 | . . . . . . 63 229 Knockbacks 4 | . . . . 1 . 2 1 Impact 4 | . . . . 1 . 2 1 Kinetic . | . . . . . . . . Secondary . | . . . . . . . . Self-Inflicted Damage 18 | . . . . 18 . . . Shots . | . . . . . . . . Rammed 4 | . . . . 4 . . . Targets Rammed 4 | . . . . 4 . . . Kicked . | . . . . . . . . Crushed . | . . . . . . . . Highest Temperature 166 | 9 . . . 166 . . 5 Average Temperature 49 | 6 . . . 54 . . 5 Received Heat Transfer 655 | . . . . 261 . . 394 Siege Activations . | . . . . . . . . Martial Activations . | . . . . . . . . Shielding Activations . | . . . . . . . . Robots Disrupted . | . . . . . . . . Combat Hostiles . | . . . . . . . . Robots Corrupted 2 | . . . . . . . 2 Combat Hostiles . | . . . . . . . . Parts Fried 4 | . . . . . . 1 3 Impact Corruptions 8 | . . . . . . 2 6 Robots Melted . | . . . . . . . . Combat Hostiles . | . . . . . . . . Parts Melted 1 | . . . . . . . 1 Heat Transferred 518 | 37 . 259 . 222 . . . Parts Sabotaged . | . . . . . . . . Parts Stolen . | . . . . . . . . Parts Stripped . | . . . . . . . . Power Chain Reactions . | . . . . . . . . Alert | -11 -10 -10 -9 -6 -5 -5 -4 ------- Run | Yrd Mat Sub Scr Fac Fac DSF Fac Maximum Alert Level . | . . . . . . . . Low Security (%) 100 | 100 100 . . 100 100 100 100 Level 1 . | . . . . . . . . Level 2 . | . . . . . . . . Level 3 . | . . . . . . . . Level 4 . | . . . . . . . . Level 5 . | . . . . . . . . High Security . | . . . . . . . . Max Security . | . . . . . . . . Peak Influence 92 | 5 . . . 92 33 37 30 Initial 33 | . . . . . 33 12 18 Average 19 | . . . . 34 23 17 4 Influence Increases 411 | 5 . . . 280 15 35 76 Destroy 0b10 Robot/C 120 | . . . . 60 . 20 40 Destroy 0b10 Robot/NC 25 | 5 . . . . . . 20 Destroy Leader 20 | . . . . 10 . . 10 Disable Machine 15 | . . . . 15 . . . Destroy Structure 6 | . . . . . . . 6 Partial Spotted 15 | . . . . . 15 . . Lose Combat Pursuer 210 | . . . . 195 . 15 . Influence Decreases 411 | 5 . . . 211 66 16 113 Entered New Map 61 | . . . . . 36 6 19 Time Decay 265 | 5 . . . 176 30 . 54 Lost Part 85 | . . . . 35 . 10 40 Squads Dispatched 9 | . . . . 4 . . 5 Investigation 2 | . . . . 1 . . 1 Extermination 2 | . . . . 1 . . 1 Reinforcement 5 | . . . . 2 . . 3 Assault . | . . . . . . . . Garrison . | . . . . . . . . Intercept . | . . . . . . . . Searches Triggered . | . . . . . . . . Construction Impeded . | . . . . . . . . Haulers Reinforced . | . . . . . . . . Active Scanning Responses . | . . . . . . . . Cargo Convoy Interrupts . | . . . . . . . . Stealth | -11 -10 -10 -9 -6 -5 -5 -4 --------- Run | Yrd Mat Sub Scr Fac Fac DSF Fac Distress Signals 2 | . . . . 1 . . 1 Communications Jammed . | . . . . . . . . Distress Signals . | . . . . . . . . Times Spotted 49 | . . 2 . 29 . 2 16 Peak Tracking Total 9 | . . 2 . 8 . 1 9 Tactical Retreats 7 | . . . . 6 . 1 . Traps | -11 -10 -10 -9 -6 -5 -5 -4 ------- Run | Yrd Mat Sub Scr Fac Fac DSF Fac Traps Triggered 1 | . . . . . . 1 . Indirectly . | . . . . . . . . Trap Hack Attempts . | . . . . . . . . Triggered . | . . . . . . . . Disarmed . | . . . . . . . . Reprogrammed . | . . . . . . . . Reused . | . . . . . . . . Traps Extracted . | . . . . . . . . Installed . | . . . . . . . . Triggered . | . . . . . . . . Machines | -11 -10 -10 -9 -6 -5 -5 -4 ---------- Run | Yrd Mat Sub Scr Fac Fac DSF Fac Machines Disabled 1 | . . . . 1 . . . Max in Single Turn 1 | . . . . 1 . . . Machines Repaired . | . . . . . . . . Machines Dismantled . | . . . . . . . . Machines Sabotaged . | . . . . . . . . Overloaded Fab Kills . | . . . . . . . . Hacking | -11 -10 -10 -9 -6 -5 -5 -4 --------- Run | Yrd Mat Sub Scr Fac Fac DSF Fac Machines Accessed 9 | . . . 6 2 1 . . Terminals 1 | . . . . . 1 . . Fabricators . | . . . . . . . . Repair Stations . | . . . . . . . . Recycling Units 2 | . . . . 2 . . . Scanalyzers . | . . . . . . . . Garrison Access . | . . . . . . . . Total Hacks 44 | . . . 39 3 2 . . Successful 41 | . . . 39 1 1 . . Failed 3 | . . . . 2 1 . . Catastrophic . | . . . . . . . . Database Lockouts . | . . . . . . . . Manual 3 | . . . . 3 . . . Terminals 2 | . . . . . 2 . . Fabricators . | . . . . . . . . Repair Stations . | . . . . . . . . Recycling Units 3 | . . . . 3 . . . Scanalyzers . | . . . . . . . . Garrison Access . | . . . . . . . . Terminal Hacks 40 | . . . 39 . 1 . . Record 39 | . . . 39 . . . . Open DSF 1 | . . . . . 1 . . Fabricator Hacks . | . . . . . . . . Repair Station Hacks . | . . . . . . . . Recycling Unit Hacks . | . . . . . . . . Scanalyzer . | . . . . . . . . Garrison Access Hacks . | . . . . . . . . Unauthorized Hacks 1 | . . . . 1 . . . Terminals . | . . . . . . . . Fabricators . | . . . . . . . . Repair Stations . | . . . . . . . . Recycling Units 1 | . . . . 1 . . . Fedlink 1 | . . . . 1 . . . Scanalyzers . | . . . . . . . . Garrison Access . | . . . . . . . . Data Cores Recovered . | . . . . . . . . Used . | . . . . . . . . Hacking Detections 1 | . . . . 1 . . . Full Trace Events . | . . . . . . . . Feedback Events . | . . . . . . . . Feedback Blocked . | . . . . . . . . Robot Schematics Acquired . | . . . . . . . . Robots Built . | . . . . . . . . Authchips . | . . . . . . . . Time . | . . . . . . . . Total Robot Build Rating . | . . . . . . . . Part Schematics Acquired . | . . . . . . . . Parts Built . | . . . . . . . . Authchips . | . . . . . . . . Time . | . . . . . . . . Total Part Build Rating . | . . . . . . . . Part Studies Acquired . | . . . . . . . . Parts Repaired . | . . . . . . . . Time . | . . . . . . . . Parts Recycled . | . . . . . . . . Recycled Matter . | . . . . . . . . Retrieved Matter . | . . . . . . . . Retrieved Components . | . . . . . . . . Parts Scanalyzed . | . . . . . . . . Part Schematics Acquired . | . . . . . . . . Parts Damaged . | . . . . . . . . Bothacking | -11 -10 -10 -9 -6 -5 -5 -4 ------------ Run | Yrd Mat Sub Scr Fac Fac DSF Fac Used RIF Installer . | . . . . . . . . Robots Hacked . | . . . . . . . . Non-combat . | . . . . . . . . Combat . | . . . . . . . . Robot Hacks Applied . | . . . . . . . . Relay Couplers Released . | . . . . . . . . Fabnet Peak Effective % . | . . . . . . . . Robots Rewired . | . . . . . . . . Allies Hacked . | . . . . . . . . Hacks Repelled . | . . . . . . . . Allies | -11 -10 -10 -9 -6 -5 -5 -4 -------- Run | Yrd Mat Sub Scr Fac Fac DSF Fac Total Allies 1 | . . . . . . 1 . Largest Group 1 | . . . . . . 1 . Highest-Rated Group 55 | . . . . . . 55 . Highest-Rated Ally 55 | . . . . . . 55 . Initial UFD Resources 39 | . . . . 23 35 35 39 Total Orders . | . . . . . . . . Ally Attacks . | . . . . . . . . Total Damage . | . . . . . . . . Kills . | . . . . . . . . Allies Corrupted . | . . . . . . . . Allies Melted . | . . . . . . . . Intel | -11 -10 -10 -9 -6 -5 -5 -4 ------- Run | Yrd Mat Sub Scr Fac Fac DSF Fac Active Infowar (turns) 925 | 34 70 20 . 326 61 127 287 Optics 714 | . . . . 239 61 127 287 Sensors 87 | . . . . 87 . . . Seismic 124 | 34 70 20 . . . . . Robot Analysis Total . | . . . . . . . . Derelict Logs Recovered 3 | . . . 3 . . . . Drone Launches . | . . . . . . . . Drone Recoveries . | . . . . . . . . Exploration | -11 -10 -10 -9 -6 -5 -5 -4 ------------- Run | Yrd Mat Sub Scr Fac Fac DSF Fac Turns Passed 3574 | 126 70 105 2266 532 61 127 287 Spaces Moved 2455 | 68 13 45 1408 582 104 45 190 Core 230 | 4 . . . 156 . 1 69 Treads 1664 | 64 13 45 1408 134 . . . Legs 134 | . . . . . . 31 103 Wheels 17 | . . . . . . . 17 Hover 327 | . . . . 292 32 2 1 Flight 83 | . . . . . 72 11 . Fastest Speed 34 | 50 160 160 160 50 34 34 50 Average Speed 129 | 155 160 160 160 80 42 99 93 Slowest Speed 250 | 160 160 160 160 160 60 250 250 Overloaded Moves . | . . . . . . . . Propulsion Burnouts . | . . . . . . . . Robots Hopped . | . . . . . . . . Potential Cave-ins . | . . . . . . . . Cave-ins Triggered . | . . . . . . . . Exploration Rate (%) 23 | 5 4 3 93 19 3 50 10 Regions Visited 7 Branch Regions 2 Pre-discovered Areas . | . . . . . . . . Known Exits Taken 2 | . . . 1 . 1 . . Unknown Exits Taken 4 | 1 1 1 . 1 . . . Scrap Searched 4 | . . . 4 . . . . Spaces Dug 3 | . . . . . . . 3 Terrain Destroyed 4 | . . . . 1 . . 3 Melee 3 | . . . . . . . 3 Projectile 1 | . . . . 1 . . . AOE . | . . . . . . . . Terrain Rammed . | . . . . . . . . Walls Destroyed . | . . . . . . . . Machines Disabled . | . . . . . . . . Actions | -11 -10 -10 -9 -6 -5 -5 -4 --------- Run | Yrd Mat Sub Scr Fac Fac DSF Fac Total 2728 | 83 62 62 1424 622 119 116 240 Wait 111 | 2 50 . 6 . 8 37 8 Move 2449 | 67 12 44 1407 582 103 44 190 Hop . | . . . . . . . . Pick Up 26 | 6 . 5 2 4 3 6 . Fast Attach 23 | 7 . . 1 8 4 . 3 Attach 16 | . . . . 6 . 6 4 Detach 3 | . . . . 1 . 1 1 Swap 7 | . . 1 3 3 . . . Drop 15 | . . 3 5 5 1 1 . Fire 20 | 1 . 9 . 10 . . . Melee 40 | . . . . . . 6 34 Ram 3 | . . . . 3 . . . Kick . | . . . . . . . . Crush . | . . . . . . . . Escape Stasis 15 | . . . . . . 15 . Rewire . | . . . . . . . . Trap . | . . . . . . . . Miscellaneous . | . . . . . . . . Route ------- -11/Scrapyard -10/Materials -10/Subcaves -9/Scraptown (discovered 2 exits: *Fac x2) -6/Factory -5/Factory -5/DSF -4/Factory History --------- Turn | Location | Event 7 | -11/Scrapyard | Discovered new exit (range 16) 127 | -11/Scrapyard | Entered Materials 192 | -10/Materials | Discovered new exit (range 3) 197 | -10/Materials | Entered Subcaves 198 | -10/Subcaves | Ambushed by Subdwellers from Twisted Machinery 198 | -10/Subcaves | Approached by a straggling Scientist 294 | -10/Subcaves | Scientist uncovered a shortcut to Scraptown 302 | -10/Subcaves | Entered Scraptown 316 | -9/Scraptown | Build established: Mutant 731 | -9/Scraptown | Scanned Subdweller tech in exchange for log data 734 | -9/Scraptown | Learned Factory trap positions 736 | -9/Scraptown | Learned Factory stockpile data 737 | -9/Scraptown | Learned Factory security intel 809 | -9/Scraptown | Discovered new exit (range 5) 926 | -9/Scraptown | Visited Observation Area 981 | -9/Scraptown | Visited Symbiants 1120 | -9/Scraptown | Visited The Evicted 1190 | -9/Scraptown | Visited SPCMW 1256 | -9/Scraptown | Visited IN-MT5's Study 1578 | -9/Scraptown | Visited UFD Registry 1600 | -9/Scraptown | Visited Cyclists 1642 | -9/Scraptown | Visited Assassins FH 1672 | -9/Scraptown | Registered with UFD as "Steelmind" 1703 | -9/Scraptown | Entered Cyclist Reading Room 1778 | -9/Scraptown | Visited Botcube Research 1792 | -9/Scraptown | Found Lrg. Botcube 1821 | -9/Scraptown | Visited Scrap Suit Storage 1869 | -9/Scraptown | Visited Junk Cannon Lab 2089 | -9/Scraptown | Visited Curators Association 2129 | -9/Scraptown | Visited DA-N13 Charitable Foundation 2194 | -9/Scraptown | Visited Modified Component R&D 2259 | -9/Scraptown | Visited Derelict Rescue Squad 2301 | -9/Scraptown | Visited Abandonware Association 2352 | -9/Scraptown | Visited A0-MCA Data Center 2362 | -9/Scraptown | Given an A- rating by A0-MCA 2471 | -9/Scraptown | Met Optimus 2471 | -9/Scraptown | Accepted into 0bPrime 2563 | -9/Scraptown | Discovered new exit (range 3) 2567 | -9/Scraptown | Identified exit to Factory 2568 | -9/Scraptown | Entered Factory 2568 | -6/Factory | Evolved 8 slots: Power x1, Propulsion x2, Utility x3, Weapon x2 2569 | -6/Factory | Loaded intel: 109 trap records 2766 | -6/Factory | Loaded intel: 8 recycling unit locations 2798 | -6/Factory | Spotted B-75 Beast 2867 | -6/Factory | Lost 11 parts (2p4n2u3w) 2886 | -6/Factory | Core integrity fell below 50% 3057 | -6/Factory | Core integrity fell below 20% 3095 | -6/Factory | Discovered new exit (range 8) 3100 | -6/Factory | Entered another Factory area 3100 | -5/Factory | Evolved 2 slots: Propulsion x2 3161 | -5/Factory | Identified exit to DSF 3161 | -5/Factory | Entered DSF 3255 | -5/DSF | Lrg. Botcube activated 3255 | -5/DSF | Discovered new exit (range 21) 3267 | -5/DSF | Lrg. Botcube completed mutation into legged form (unarmed). 3280 | -5/DSF | Additional patrols routed to DSF 3288 | -5/DSF | Entered Factory 3288 | -4/Factory | Evolved 2 slots: Utility x2 3374 | -4/Factory | Noticed UFD Elites at a Recycling Unit 3513 | -4/Factory | Core integrity fell below 50% 3543 | -4/Factory | Lost 13 parts (1p7n2u3w) 3552 | -4/Factory | Core integrity fell below 20% 3575 | -4/Factory | Destroyed by H-71 Marshal with Heavy Mass Driver Last Messages --------------- 03546_ K-01 Serf collects debris. 03546_ U-05 Engineer lays Concrete. 03549_ U-05 Engineer builds a Wall. 03549_ K-01 Serf cleans the Fusion Modulator. 03549_ U-05 Engineer lays Concrete. 03549_ W-44 Eye sends out distress signal. 03550_ U-05 Engineer lays Concrete. 03551_ Penetrated by Slug. 03551_ Slug penetrates K-01 Serf. 03551_ K-01 Serf destroyed. 03552_ K-01 Serf collects debris. 03553_ K-01 Serf cleans the Fusion Modulator. 03554_ Slug penetrates Recycling Unit. 03554_ Penetrated by Slug. 03554_ Slug penetrates Wall. 03555_ ALERT: Suspicious intruders detected, dispatching Cutter reinforcements to area. 03558_ K-01 Serf collects debris. 03564_ BP8Z%DM/BH&CNY O&CSGOG4EBYFL6PFU8T>F 03564_ ALERT: Security rotation in progress. Map ----- +----------------------------------------------------+ | ?????????????????????????????????????????????????? | | ?????????????????????????????????????????????????? | | ?????????????????????????????????????????????????? | | ?????????????????????????????????????????????????? | | ?????????????????????????????????????????????????? | | ?????????????????????????????????????????????????? | | ?????????????????????????????????????????????????? | | ?????????????????????????????????????????????????? | | ?????????????????????????????????????????????????? | | ?????????????????????????????????????????????????? | | ?????????????????????????????????????????????????? | | ?????????????????????????????????????????????????? | | ?????????????????????????#???????????????????????? | | ????????????????????????? ???????????????????????? | | ????????????????????????# #??????????????????????? | | ??????????????????????### #??????????????????????? | | ???+####??????????????+ #??????????????????????? | | ? ???????????????# #??????????????????????? | | # #???? ??????????# #??????????????????????? | | # #???? #?????????# #??????????????????????? | | # #???? #?????????# #??????????????????????? | | #???? #?????????# #??????????????????????? | | # #???? #?????????# #??????????????????????? | | #???? #?????????# /??????????????????????? | | #???? #?????????#% #??????????????????????? | | #???? #????????## @##?######??????????????? | | #???? #????????# # #??????????????? | | #####/########## # T #??????????????? | | # + H A + = #??????????????? | | # === ####### g % # #??????????????? | | # === #?????# g # ]#??????????????? | | # # == #?????### ###? #??????????????? | | # #! #???????# #???######??????????????? | | # """ #???????# ############????????????? | | # # Y" #???????# ## #????????????? | | # # """ #???????# ## #????????????? | | # # #??????## ## #????????????? | | ###+############# # #????????????? | | %= T + #????????????? | | [ ### # #????????????? | | #?##### #????????????? | | #?????# #????????????? | | #?????###########????????????? | | #########+###????????????????????????????? | | #???????? ?????????????????????????????? | | %* #?????? ???????????????????????????? | | """ #????# ?????????????????????????? | | #????# #????????????????????????? | | """ #????# #????????????????????????? | | """ #????# #????????????????????????? | +----------------------------------------------------+ Best States ------------- Heat Dissipation 43 Energy Generation 24 Energy Capacity 375 Matter Stores 300 Matter Capacity 300 Sight Range 22 Robot Scan Range 15 Terrain Scan Density 10 Armor Coverage 150 Evasion (%) 70 Recoil Reduction 3 Offensive Hacking 36 Item Schematics ----------------- None Robot Schematics ------------------ None Fabricated ------------ Nothing Repaired ---------- Nothing Studied --------- None Alien Tech Used ----------------- None Achievements -------------- Bob, First Of His Name Frankenstein Nice Directions, Buddy Challenges ------------ None Game ------ Seed WeightLatentThrower Manual? 0 Play Time 00:33:49 Cumulative 52.0 hours Start 2026.04.11 @ 21:30:20 End 2026.04.11 @ 22:10:36 Sessions 1 Manual Loads 0 Difficulty Rogue Special Mode None Game No. 43 Rogue 43 Adventurer 0 Explorer 0 Win Type - Total 2 Types 2/0/0/0/0/0/0/0/0/0 Lore% 46 Gallery% 38 Achievement% 36 Wizard Run 0 Options --------- Layout 0 ASCII 1 Keyboard 1 Movement Numpad Keybinds 0 Fullscreen 1 Font 24/Cog Map View 76x50 Zoom Use 0% Tactical HUD 1 Map Filters NONE Filters NONE Steam 1 RUN: cb5fcca3-07cd-4e2d-b456-1179de289a4a